[Event "Late-Titled-Tuesday-Blitz-May-14-2024"]
[Site "Chess.com"]
[Date "2024.05.14"]
[Round "9"]
[White "jcmesafischer"]
[Black "DishonorOnYourCow"]
[Result "0-1"]
[WhiteElo "2329"]
[BlackElo "2543"]
[TimeControl "180+1"]
[EndTime "15:45:54 PDT"]
[Termination "DishonorOnYourCow won by checkmate"]

1. e4 {[%clk 0:02:54.1]} 1... c5 {[%clk 0:02:58.1]} 2. Nc3 {[%clk 0:02:38.3]}
2... d6 {[%clk 0:02:55.7]} 3. g3 {[%clk 0:02:38.2]} 3... Nc6 {[%clk 0:02:53.7]}
4. Bg2 {[%clk 0:02:38.1]} 4... g6 {[%clk 0:02:54.2]} 5. d3 {[%clk 0:02:36]} 5...
Bg7 {[%clk 0:02:54.7]} 6. Be3 {[%clk 0:02:36]} 6... e6 {[%clk 0:02:51.6]} 7.
Nge2 {[%clk 0:02:36]} 7... Nge7 {[%clk 0:02:52.1]} 8. O-O {[%clk 0:02:35.4]}
8... O-O {[%clk 0:02:51.3]} 9. f4 {[%clk 0:02:35.7]} 9... Nd4 {[%clk 0:02:51]}
10. Qd2 {[%clk 0:02:35.6]} 10... Nec6 {[%clk 0:02:50.6]} 11. Rae1 {[%clk
0:02:35]} 11... Rb8 {[%clk 0:02:50.8]} 12. Nd1 {[%clk 0:02:34.9]} 12... b5
{[%clk 0:02:48.2]} 13. c3 {[%clk 0:02:35]} 13... Nxe2+ {[%clk 0:02:47.8]} 14.
Qxe2 {[%clk 0:02:35.9]} 14... b4 {[%clk 0:02:47]} 15. e5 {[%clk 0:02:31.7]}
15... Bb7 {[%clk 0:02:30.2]} 16. exd6 {[%clk 0:02:31.4]} 16... Qxd6 {[%clk
0:02:29.4]} 17. Qf2 {[%clk 0:02:31.6]} 17... Qxd3 {[%clk 0:02:10.1]} 18. Bxc5
{[%clk 0:02:31.1]} 18... Rfd8 {[%clk 0:02:06.7]} 19. cxb4 {[%clk 0:02:30]} 19...
Nxb4 {[%clk 0:01:55.8]} 20. Bxa7 {[%clk 0:01:53.4]} 20... Bxg2 {[%clk
0:01:38.3]} 21. Kxg2 {[%clk 0:01:54.3]} 21... Rbc8 {[%clk 0:01:34.7]} 22. Nc3
{[%clk 0:01:44.4]} 22... Bxc3 {[%clk 0:01:18.2]} 23. bxc3 {[%clk 0:01:45.3]}
23... Qd5+ {[%clk 0:01:18.5]} 24. Qf3 {[%clk 0:01:43.3]} 24... Rxc3 {[%clk
0:01:10.8]} 25. Qxd5 {[%clk 0:01:40.2]} 25... Rxd5 {[%clk 0:01:10.7]} 26. Rd1
{[%clk 0:01:29.8]} 26... Ra3 {[%clk 0:01:08.8]} 27. Rxd5 {[%clk 0:01:25]} 27...
Nxd5 {[%clk 0:01:06.9]} 28. Bd4 {[%clk 0:01:20.3]} 28... Rxa2+ {[%clk
0:01:05.5]} 29. Rf2 {[%clk 0:01:20.7]} 29... Ra4 {[%clk 0:00:55.7]} 30. Be5
{[%clk 0:01:20.4]} 30... f6 {[%clk 0:00:55.5]} 31. Bb2 {[%clk 0:01:20]} 31...
Kf7 {[%clk 0:00:51.9]} 32. Kf3 {[%clk 0:01:19.5]} 32... Ra2 {[%clk 0:00:50.1]}
33. Bd4 {[%clk 0:01:18]} 33... Ra3+ {[%clk 0:00:45.2]} 34. Kg2 {[%clk
0:01:17.6]} 34... Rd3 {[%clk 0:00:45.5]} 35. Bb2 {[%clk 0:01:16]} 35... Ne3+
{[%clk 0:00:44.8]} 36. Kh3 {[%clk 0:01:15.7]} 36... h5 {[%clk 0:00:41.8]} 37.
Rf3 {[%clk 0:01:11.5]} 37... Ng4 {[%clk 0:00:39.7]} 38. Rxd3 {[%clk 0:01:09.4]}
38... Nf2+ {[%clk 0:00:39.7]} 39. Kg2 {[%clk 0:01:08.8]} 39... Nxd3 {[%clk
0:00:40.6]} 40. Bc3 {[%clk 0:01:09.1]} 40... Nc5 {[%clk 0:00:32.5]} 41. Kf3
{[%clk 0:01:08.3]} 41... Nd7 {[%clk 0:00:26.1]} 42. h3 {[%clk 0:01:08.1]} 42...
Nb6 {[%clk 0:00:26.1]} 43. g4 {[%clk 0:01:07]} 43... hxg4+ {[%clk 0:00:25.9]}
44. hxg4 {[%clk 0:01:07]} 44... Nd5 {[%clk 0:00:26.6]} 45. Bd4 {[%clk
0:01:06.7]} 45... Ke7 {[%clk 0:00:19.6]} 46. Ke4 {[%clk 0:01:02.5]} 46... Kd6
{[%clk 0:00:17.1]} 47. f5 {[%clk 0:00:50.3]} 47... gxf5+ {[%clk 0:00:14.1]} 48.
gxf5 {[%clk 0:00:51.2]} 48... e5 {[%clk 0:00:14.6]} 49. Bf2 {[%clk 0:00:48]}
49... Nc3+ {[%clk 0:00:11.7]} 50. Kd3 {[%clk 0:00:48]} 50... Nb5 {[%clk
0:00:11.2]} 51. Kc4 {[%clk 0:00:43.2]} 51... Nc7 {[%clk 0:00:09.4]} 52. Bc5+
{[%clk 0:00:42.3]} 52... Kc6 {[%clk 0:00:08]} 53. Bf2 {[%clk 0:00:30.8]} 53...
Nd5 {[%clk 0:00:07.9]} 54. Bh4 {[%clk 0:00:29.3]} 54... Kd6 {[%clk 0:00:03]} 55.
Bf2 {[%clk 0:00:26.8]} 55... Nf4 {[%clk 0:00:00.8]} 56. Bc5+ {[%clk 0:00:24.7]}
56... Kc6 {[%clk 0:00:00.8]} 57. Bf2 {[%clk 0:00:25.6]} 57... Nh5 {[%clk
0:00:00.6]} 58. Bh4 {[%clk 0:00:24.5]} 58... Kd6 {[%clk 0:00:01.4]} 59. Bf2
{[%clk 0:00:21.7]} 59... Ke7 {[%clk 0:00:02.3]} 60. Kd5 {[%clk 0:00:20.8]} 60...
Kf7 {[%clk 0:00:02.5]} 61. Ke4 {[%clk 0:00:19.6]} 61... Ng7 {[%clk 0:00:03]} 62.
Be3 {[%clk 0:00:19.2]} 62... Ne8 {[%clk 0:00:03.5]} 63. Bc5 {[%clk 0:00:18.9]}
63... Ng7 {[%clk 0:00:01.5]} 64. Bd6 {[%clk 0:00:18.4]} 64... Nh5 {[%clk
0:00:01.9]} 65. Bc5 {[%clk 0:00:18.6]} 65... Ng3+ {[%clk 0:00:02.2]} 66. Kd5
{[%clk 0:00:16.9]} 66... Nxf5 {[%clk 0:00:02.8]} 67. Bd6 {[%clk 0:00:17.5]}
67... Ne3+ {[%clk 0:00:02.7]} 68. Ke4 {[%clk 0:00:17.1]} 68... Nc4 {[%clk
0:00:02.2]} 69. Bc7 {[%clk 0:00:14.6]} 69... Ke6 {[%clk 0:00:02.7]} 70. Kd3
{[%clk 0:00:15.2]} 70... Nb2+ {[%clk 0:00:01.7]} 71. Kc3 {[%clk 0:00:14.7]}
71... Nd1+ {[%clk 0:00:01.8]} 72. Kd2 {[%clk 0:00:13]} 72... Nf2 {[%clk
0:00:02.7]} 73. Ke3 {[%clk 0:00:13.1]} 73... Ng4+ {[%clk 0:00:02.6]} 74. Kf3
{[%clk 0:00:13.4]} 74... f5 {[%clk 0:00:03.5]} 75. Kg3 {[%clk 0:00:12.2]} 75...
Nf6 {[%clk 0:00:02.9]} 76. Kf3 {[%clk 0:00:11.9]} 76... e4+ {[%clk 0:00:03.1]}
77. Ke2 {[%clk 0:00:11.3]} 77... Nd5 {[%clk 0:00:04]} 78. Bb8 {[%clk 0:00:10.7]}
78... f4 {[%clk 0:00:02.3]} 79. Kf2 {[%clk 0:00:09.4]} 79... Kf5 {[%clk
0:00:02.9]} 80. Ke2 {[%clk 0:00:08.7]} 80... Nb4 {[%clk 0:00:03.1]} 81. Ba7
{[%clk 0:00:06.9]} 81... Nc6 {[%clk 0:00:04]} 82. Bc5 {[%clk 0:00:07]} 82... Ne5
{[%clk 0:00:04.1]} 83. Bd4 {[%clk 0:00:06.6]} 83... f3+ {[%clk 0:00:04.5]} 84.
Kf2 {[%clk 0:00:04.5]} 84... Ng4+ {[%clk 0:00:05.4]} 85. Kg3 {[%clk 0:00:05.1]}
85... Ne5 {[%clk 0:00:03.2]} 86. Be3 {[%clk 0:00:04]} 86... Nc4 {[%clk
0:00:03.3]} 87. Bd4 {[%clk 0:00:04]} 87... Ke6 {[%clk 0:00:03]} 88. Kf4 {[%clk
0:00:03.3]} 88... Kd5 {[%clk 0:00:03.9]} 89. Bf2 {[%clk 0:00:03.3]} 89... Nb2
{[%clk 0:00:02.6]} 90. Ke3 {[%clk 0:00:02.8]} 90... Nd3 {[%clk 0:00:03.5]} 91.
Bg3 {[%clk 0:00:03.1]} 91... Nb2 {[%clk 0:00:03.3]} 92. Bf4 {[%clk 0:00:02]}
92... Nc4+ {[%clk 0:00:03.6]} 93. Kf2 {[%clk 0:00:02.3]} 93... Kd4 {[%clk
0:00:04.5]} 94. Bg5 {[%clk 0:00:02.2]} 94... Kd3 {[%clk 0:00:05.4]} 95. Bf4
{[%clk 0:00:02.5]} 95... Nb2 {[%clk 0:00:02.9]} 96. Bg5 {[%clk 0:00:02]} 96...
Nd1+ {[%clk 0:00:03.3]} 97. Kg3 {[%clk 0:00:02.5]} 97... Nc3 {[%clk 0:00:02.1]}
98. Kf2 {[%clk 0:00:02.3]} 98... Nd1+ {[%clk 0:00:01.8]} 99. Kg3 {[%clk
0:00:02.5]} 99... Ke2 {[%clk 0:00:02.7]} 100. Bf4 {[%clk 0:00:02.1]} 100... e3
{[%clk 0:00:03.2]} 101. Bxe3 {[%clk 0:00:01.4]} 101... Nxe3 {[%clk 0:00:02.4]}
102. Kh2 {[%clk 0:00:01.4]} 102... f2 {[%clk 0:00:03.3]} 103. Kg3 {[%clk
0:00:02.2]} 103... f1=Q {[%clk 0:00:03.1]} 104. Kh2 {[%clk 0:00:03.1]} 104...
Qf2+ {[%clk 0:00:03.4]} 105. Kh3 {[%clk 0:00:03]} 105... Qg2+ {[%clk 0:00:03.5]}
106. Kh4 {[%clk 0:00:03.9]} 106... Qg4# {[%clk 0:00:04.3]} 0-1

[Event "Late-Titled-Tuesday-Blitz-May-14-2024"]
[Site "Chess.com"]
[Date "2024.05.14"]
[Round "9"]
[White "Agibileg"]
[Black "Sanan_Sjugirov"]
[Result "1/2-1/2"]
[WhiteElo "2880"]
[BlackElo "3029"]
[TimeControl "180+1"]
[EndTime "15:46:48 PDT"]
[Termination "Game drawn - insufficient material"]

1. d4 {[%clk 0:02:59.2]} 1... d5 {[%clk 0:02:57.7]} 2. c4 {[%clk 0:02:59.2]}
2... c6 {[%clk 0:02:58.3]} 3. Nf3 {[%clk 0:02:59]} 3... Nf6 {[%clk 0:02:58.4]}
4. Nc3 {[%clk 0:02:59.2]} 4... dxc4 {[%clk 0:02:54.2]} 5. a4 {[%clk 0:02:58.7]}
5... Bf5 {[%clk 0:02:54.7]} 6. Ne5 {[%clk 0:02:58.1]} 6... Nbd7 {[%clk
0:02:54.7]} 7. Nxc4 {[%clk 0:02:58]} 7... Nb6 {[%clk 0:02:55.3]} 8. Ne5 {[%clk
0:02:58.2]} 8... a5 {[%clk 0:02:55.8]} 9. e3 {[%clk 0:02:55.5]} 9... h6 {[%clk
0:02:40.6]} 10. Bd3 {[%clk 0:02:53.8]} 10... Bxd3 {[%clk 0:02:40.2]} 11. Qxd3
{[%clk 0:02:54.7]} 11... e6 {[%clk 0:02:39.8]} 12. O-O {[%clk 0:02:54.7]} 12...
Bb4 {[%clk 0:02:37.5]} 13. e4 {[%clk 0:02:47.9]} 13... O-O {[%clk 0:02:35.3]}
14. Be3 {[%clk 0:02:48.1]} 14... Nfd7 {[%clk 0:02:30]} 15. Nxd7 {[%clk 0:02:40]}
15... Nxd7 {[%clk 0:02:30.4]} 16. Rfd1 {[%clk 0:02:38.2]} 16... Qe7 {[%clk
0:02:24]} 17. Qe2 {[%clk 0:02:24.6]} 17... Rfd8 {[%clk 0:02:11.7]} 18. h3 {[%clk
0:02:20.8]} 18... Nf6 {[%clk 0:02:03.5]} 19. Qf3 {[%clk 0:02:19]} 19... Rd7
{[%clk 0:02:00.4]} 20. Rd3 {[%clk 0:01:57.2]} 20... Rad8 {[%clk 0:01:59.6]} 21.
Rad1 {[%clk 0:01:57.4]} 21... e5 {[%clk 0:01:45.5]} 22. Qg3 {[%clk 0:01:37.3]}
22... Bxc3 {[%clk 0:01:30.6]} 23. Bxh6 {[%clk 0:01:26.9]} 23... Nh5 {[%clk
0:01:24.3]} 24. Qg4 {[%clk 0:01:27]} 24... Qe6 {[%clk 0:01:24.4]} 25. Qxh5
{[%clk 0:01:22.2]} 25... Bxd4 {[%clk 0:01:15.3]} 26. Bg5 {[%clk 0:01:14]} 26...
Bxf2+ {[%clk 0:01:13.9]} 27. Kxf2 {[%clk 0:01:13.9]} 27... Rxd3 {[%clk
0:01:09.6]} 28. Bxd8 {[%clk 0:01:14]} 28... Qb3 {[%clk 0:00:52.8]} 29. Rxd3
{[%clk 0:01:02.2]} 29... Qxd3 {[%clk 0:00:53.7]} 30. Bc7 {[%clk 0:00:59.9]}
30... Qd4+ {[%clk 0:00:48]} 31. Kf1 {[%clk 0:00:54.9]} 31... Qxb2 {[%clk
0:00:26.7]} 32. Qxe5 {[%clk 0:00:52]} 32... Qc1+ {[%clk 0:00:26.2]} 33. Kf2
{[%clk 0:00:51.8]} 33... Qc2+ {[%clk 0:00:24.9]} 34. Kg1 {[%clk 0:00:51.9]}
34... Qxa4 {[%clk 0:00:24]} 35. Bxa5 {[%clk 0:00:50.2]} 35... f6 {[%clk
0:00:19.5]} 36. Qe8+ {[%clk 0:00:49.2]} 36... Kh7 {[%clk 0:00:20.1]} 37. Qh5+
{[%clk 0:00:48.5]} 37... Kg8 {[%clk 0:00:20.8]} 38. Qf5 {[%clk 0:00:44.4]} 38...
b5 {[%clk 0:00:18.4]} 39. Bc3 {[%clk 0:00:21.4]} 39... b4 {[%clk 0:00:18.6]} 40.
Bb2 {[%clk 0:00:18.9]} 40... Qc2 {[%clk 0:00:16.7]} 41. Qf2 {[%clk 0:00:18.2]}
41... Qxe4 {[%clk 0:00:16]} 42. Qc5 {[%clk 0:00:16]} 42... b3 {[%clk 0:00:14]}
43. Qc3 {[%clk 0:00:14.3]} 43... Qd5 {[%clk 0:00:13.3]} 44. Kh2 {[%clk
0:00:13.3]} 44... c5 {[%clk 0:00:13.3]} 45. Ba3 {[%clk 0:00:11.4]} 45... c4
{[%clk 0:00:13.3]} 46. Bb2 {[%clk 0:00:11.8]} 46... Qd6+ {[%clk 0:00:12.8]} 47.
Kg1 {[%clk 0:00:11.3]} 47... Qc5+ {[%clk 0:00:12.6]} 48. Qd4 {[%clk 0:00:10.3]}
48... Qc6 {[%clk 0:00:11.3]} 49. Kf2 {[%clk 0:00:10.5]} 49... Qe6 {[%clk
0:00:09.9]} 50. Kf3 {[%clk 0:00:09.2]} 50... Qf5+ {[%clk 0:00:09.9]} 51. Ke3
{[%clk 0:00:09.3]} 51... Qe6+ {[%clk 0:00:10]} 52. Kd2 {[%clk 0:00:09.7]} 52...
Qc6 {[%clk 0:00:09]} 53. Kc3 {[%clk 0:00:06.7]} 53... Qxg2 {[%clk 0:00:09]} 54.
Qxc4+ {[%clk 0:00:07.3]} 54... Kh8 {[%clk 0:00:07.7]} 55. Qc8+ {[%clk
0:00:07.1]} 55... Kh7 {[%clk 0:00:07.7]} 56. Qf5+ {[%clk 0:00:06.7]} 56... Kg8
{[%clk 0:00:07.3]} 57. Kxb3 {[%clk 0:00:06.6]} 57... Qb7+ {[%clk 0:00:06.8]} 58.
Kc2 {[%clk 0:00:06.9]} 58... Qc6+ {[%clk 0:00:07.1]} 59. Bc3 {[%clk 0:00:07.3]}
59... Qg2+ {[%clk 0:00:07.2]} 60. Kd3 {[%clk 0:00:07.6]} 60... Qg3+ {[%clk
0:00:07.6]} 61. Kc2 {[%clk 0:00:07.4]} 61... Qg2+ {[%clk 0:00:08]} 62. Bd2
{[%clk 0:00:07.9]} 62... Qg3 {[%clk 0:00:08.1]} 63. Qe6+ {[%clk 0:00:04.6]}
63... Kh7 {[%clk 0:00:08.2]} 64. Qf5+ {[%clk 0:00:05]} 64... Kg8 {[%clk
0:00:08.5]} 65. Qc8+ {[%clk 0:00:05.1]} 65... Kh7 {[%clk 0:00:08.5]} 66. Qc3
{[%clk 0:00:04.9]} 66... Qg2 {[%clk 0:00:07.4]} 67. Qd3+ {[%clk 0:00:04.9]}
67... Kh8 {[%clk 0:00:07.7]} 68. Kd1 {[%clk 0:00:05.4]} 68... Qg1+ {[%clk
0:00:07.6]} 69. Ke2 {[%clk 0:00:05.7]} 69... Qg2+ {[%clk 0:00:08]} 70. Ke1
{[%clk 0:00:06]} 70... Qg1+ {[%clk 0:00:08.4]} 71. Qf1 {[%clk 0:00:06.5]} 71...
Qg3+ {[%clk 0:00:08.6]} 72. Ke2 {[%clk 0:00:07]} 72... Kg8 {[%clk 0:00:08.4]}
73. Qf3 {[%clk 0:00:07.3]} 73... Qh2+ {[%clk 0:00:08.8]} 74. Kd3 {[%clk
0:00:05.7]} 74... Qd6+ {[%clk 0:00:08.8]} 75. Ke3 {[%clk 0:00:06.2]} 75... Qe5+
{[%clk 0:00:09]} 76. Kf2 {[%clk 0:00:06.3]} 76... Qh2+ {[%clk 0:00:09.7]} 77.
Qg2 {[%clk 0:00:06.4]} 77... Qe5 {[%clk 0:00:09.7]} 78. Be3 {[%clk 0:00:06.4]}
78... Qf5+ {[%clk 0:00:09.6]} 79. Qf3 {[%clk 0:00:06.2]} 79... Qc2+ {[%clk
0:00:09.7]} 80. Kg3 {[%clk 0:00:06.7]} 80... Qg6+ {[%clk 0:00:09.7]} 81. Qg4
{[%clk 0:00:07.2]} 81... Qd3 {[%clk 0:00:10.2]} 82. Qe6+ {[%clk 0:00:07.6]}
82... Kh7 {[%clk 0:00:10.5]} 83. Kf3 {[%clk 0:00:05.2]} 83... Qf1+ {[%clk
0:00:10.7]} 84. Ke4 {[%clk 0:00:05.6]} 84... Qg2+ {[%clk 0:00:10.6]} 85. Kd3
{[%clk 0:00:04.5]} 85... Qf1+ {[%clk 0:00:10.8]} 86. Kd2 {[%clk 0:00:04.8]}
86... Qg2+ {[%clk 0:00:09.8]} 87. Ke1 {[%clk 0:00:05]} 87... Qh1+ {[%clk
0:00:09.3]} 88. Kf2 {[%clk 0:00:04.9]} 88... Qh2+ {[%clk 0:00:09.7]} 89. Kf3
{[%clk 0:00:05.3]} 89... Qh1+ {[%clk 0:00:10.3]} 90. Ke2 {[%clk 0:00:05.5]}
90... Qg2+ {[%clk 0:00:10.4]} 91. Bf2 {[%clk 0:00:06]} 91... Qb7 {[%clk
0:00:09.3]} 92. h4 {[%clk 0:00:05.9]} 92... Qb5+ {[%clk 0:00:08.2]} 93. Kf3
{[%clk 0:00:06.1]} 93... Qd3+ {[%clk 0:00:08.4]} 94. Kg2 {[%clk 0:00:05.5]}
94... Qg6+ {[%clk 0:00:09]} 95. Kh3 {[%clk 0:00:05.4]} 95... Qd3+ {[%clk
0:00:09]} 96. Bg3 {[%clk 0:00:05.7]} 96... Qf1+ {[%clk 0:00:08.9]} 97. Kh2
{[%clk 0:00:06.2]} 97... Qf3 {[%clk 0:00:08.9]} 98. Qh3 {[%clk 0:00:05.2]} 98...
Qe2+ {[%clk 0:00:08.8]} 99. Qg2 {[%clk 0:00:05.7]} 99... Qd3 {[%clk 0:00:09.5]}
100. Qf2 {[%clk 0:00:05.4]} 100... Qe4 {[%clk 0:00:09.4]} 101. Qf4 {[%clk
0:00:05.1]} 101... Qc2+ {[%clk 0:00:09.6]} 102. Kh3 {[%clk 0:00:05.4]} 102...
Qd3 {[%clk 0:00:10.2]} 103. Kg4 {[%clk 0:00:04.9]} 103... Qd7+ {[%clk
0:00:09.5]} 104. Qf5+ {[%clk 0:00:05.1]} 104... Qxf5+ {[%clk 0:00:09.4]} 105.
Kxf5 {[%clk 0:00:06]} 105... Kh6 {[%clk 0:00:07.9]} 106. Kg4 {[%clk 0:00:02.5]}
106... g5 {[%clk 0:00:08]} 107. h5 {[%clk 0:00:02.5]} 107... f5+ {[%clk
0:00:08.3]} 108. Kxf5 {[%clk 0:00:03]} 108... Kxh5 {[%clk 0:00:09.2]} 109. Be5
{[%clk 0:00:02.7]} 109... g4 {[%clk 0:00:10.1]} 110. Bf4 {[%clk 0:00:02.9]}
110... g3 {[%clk 0:00:11]} 111. Bxg3 {[%clk 0:00:03.2]} 1/2-1/2

[Event "Late-Titled-Tuesday-Blitz-May-14-2024"]
[Site "Chess.com"]
[Date "2024.05.14"]
[Round "10"]
[White "BabageldiAnnaberdiyev"]
[Black "mostafa_sakha"]
[Result "1-0"]
[WhiteElo "2563"]
[BlackElo "2386"]
[TimeControl "180+1"]
[EndTime "15:48:32 PDT"]
[Termination "BabageldiAnnaberdiyev won by resignation"]

1. e4 {[%clk 0:03:00.9]} 1... e5 {[%clk 0:02:59.9]} 2. Nf3 {[%clk 0:03:00.5]}
2... Nc6 {[%clk 0:02:59]} 3. Bc4 {[%clk 0:03:00.7]} 3... Nf6 {[%clk 0:02:59]} 4.
d4 {[%clk 0:03:00.5]} 4... exd4 {[%clk 0:02:58.9]} 5. O-O {[%clk 0:03:00]} 5...
Nxe4 {[%clk 0:02:58.8]} 6. Re1 {[%clk 0:03:00.3]} 6... d5 {[%clk 0:02:58.8]} 7.
Bxd5 {[%clk 0:03:00.9]} 7... Qxd5 {[%clk 0:02:59.7]} 8. Nc3 {[%clk 0:03:01.3]}
8... Qa5 {[%clk 0:02:59.9]} 9. Nxe4 {[%clk 0:03:01.2]} 9... Be6 {[%clk
0:03:00.2]} 10. Neg5 {[%clk 0:03:01.2]} 10... O-O-O {[%clk 0:03:00.6]} 11. Nxe6
{[%clk 0:03:01.1]} 11... fxe6 {[%clk 0:03:01.5]} 12. Rxe6 {[%clk 0:03:01.2]}
12... Be7 {[%clk 0:03:00.9]} 13. Bd2 {[%clk 0:02:57.4]} 13... Qd5 {[%clk
0:02:57.4]} 14. Qe2 {[%clk 0:02:56.2]} 14... Bf6 {[%clk 0:02:56.6]} 15. Qe4
{[%clk 0:02:55.9]} 15... Qxe4 {[%clk 0:02:48.2]} 16. Rxe4 {[%clk 0:02:56.8]}
16... Rhe8 {[%clk 0:02:48]} 17. Rae1 {[%clk 0:02:54.9]} 17... Kd7 {[%clk
0:02:47.4]} 18. Kf1 {[%clk 0:02:53.1]} 18... Rxe4 {[%clk 0:02:45]} 19. Rxe4
{[%clk 0:02:54]} 19... Re8 {[%clk 0:02:45.5]} 20. Rxe8 {[%clk 0:02:52.9]} 20...
Kxe8 {[%clk 0:02:46.4]} 21. Ke2 {[%clk 0:02:53.3]} 21... Nb4 {[%clk 0:02:44.1]}
22. Bxb4 {[%clk 0:02:51.2]} 1-0

[Event "Late-Titled-Tuesday-Blitz-May-14-2024"]
[Site "Chess.com"]
[Date "2024.05.14"]
[Round "10"]
[White "rdarruda"]
[Black "jaramsdal"]
[Result "1-0"]
[WhiteElo "2498"]
[BlackElo "2366"]
[TimeControl "180+1"]
[EndTime "15:50:25 PDT"]
[Termination "rdarruda won by resignation"]

1. d4 {[%clk 0:02:45]} 1... Nf6 {[%clk 0:02:59.2]} 2. Nf3 {[%clk 0:02:44.9]}
2... g6 {[%clk 0:02:59.2]} 3. Nc3 {[%clk 0:02:44.8]} 3... d5 {[%clk 0:02:58.8]}
4. Bg5 {[%clk 0:02:43.9]} 4... Bg7 {[%clk 0:02:59.1]} 5. Bxf6 {[%clk 0:02:43.7]}
5... Bxf6 {[%clk 0:02:58.6]} 6. e4 {[%clk 0:02:43.6]} 6... dxe4 {[%clk
0:02:56.8]} 7. Nxe4 {[%clk 0:02:44.5]} 7... Bg7 {[%clk 0:02:57.6]} 8. Bc4 {[%clk
0:02:44.1]} 8... O-O {[%clk 0:02:57.6]} 9. O-O {[%clk 0:02:41.4]} 9... Nd7
{[%clk 0:02:57.9]} 10. Qe2 {[%clk 0:02:40.4]} 10... a6 {[%clk 0:02:56.1]} 11.
Rad1 {[%clk 0:02:39.5]} 11... b5 {[%clk 0:02:55.6]} 12. Bb3 {[%clk 0:02:38.9]}
12... Bb7 {[%clk 0:02:54.3]} 13. Rfe1 {[%clk 0:02:36.8]} 13... Qc8 {[%clk
0:02:48.7]} 14. h4 {[%clk 0:02:32]} 14... c5 {[%clk 0:02:46.5]} 15. Nxc5 {[%clk
0:02:28.4]} 15... Nxc5 {[%clk 0:02:47.4]} 16. dxc5 {[%clk 0:02:28.2]} 16... Qxc5
{[%clk 0:02:48.3]} 17. Qxe7 {[%clk 0:02:26.7]} 17... Bxf3 {[%clk 0:02:41.9]} 18.
Qxc5 {[%clk 0:02:25.3]} 18... Bxd1 {[%clk 0:02:33.7]} 19. Rxd1 {[%clk
0:02:24.1]} 19... Bxb2 {[%clk 0:02:34.6]} 20. Rd7 {[%clk 0:02:22.7]} 20... Bg7
{[%clk 0:02:34.8]} 21. Qc7 {[%clk 0:02:18.2]} 21... Rac8 {[%clk 0:02:33.4]} 22.
Qb7 {[%clk 0:02:08.8]} 22... Rb8 {[%clk 0:02:32.8]} 23. Qf3 {[%clk 0:02:08]}
23... Rbd8 {[%clk 0:02:26.2]} 24. Rxd8 {[%clk 0:02:06]} 24... Rxd8 {[%clk
0:02:27.1]} 25. Qxf7+ {[%clk 0:02:05.3]} 25... Kh8 {[%clk 0:02:27.3]} 26. g3
{[%clk 0:02:02.6]} 26... a5 {[%clk 0:02:25.7]} 27. a4 {[%clk 0:02:01.3]} 27...
bxa4 {[%clk 0:02:24.4]} 28. Bxa4 {[%clk 0:02:02.2]} 28... Rf8 {[%clk 0:02:23.2]}
29. Qd5 {[%clk 0:01:58.7]} 29... h5 {[%clk 0:02:18.8]} 30. Kg2 {[%clk
0:01:56.2]} 30... Kh7 {[%clk 0:02:18]} 31. Bb5 {[%clk 0:01:52.9]} 31... Rf5
{[%clk 0:02:16.4]} 32. Qc6 {[%clk 0:01:48.7]} 32... Bd4 {[%clk 0:02:15.6]} 33.
f4 {[%clk 0:01:48.2]} 33... Re5 {[%clk 0:02:16]} 34. fxe5 {[%clk 0:01:47.1]}
34... Bxe5 {[%clk 0:02:16.9]} 1-0

[Event "Late-Titled-Tuesday-Blitz-May-14-2024"]
[Site "Chess.com"]
[Date "2024.05.14"]
[Round "10"]
[White "Meri-Arabidze"]
[Black "doublesik"]
[Result "1-0"]
[WhiteElo "2685"]
[BlackElo "2547"]
[TimeControl "180+1"]
[EndTime "15:50:43 PDT"]
[Termination "Meri-Arabidze won by resignation"]

1. Nf3 {[%clk 0:03:00.9]} 1... d5 {[%clk 0:01:52]} 2. c4 {[%clk 0:03:01.1]} 2...
e6 {[%clk 0:01:52.1]} 3. g3 {[%clk 0:03:01.3]} 3... Nf6 {[%clk 0:01:51.3]} 4.
Bg2 {[%clk 0:03:01.9]} 4... dxc4 {[%clk 0:01:48.3]} 5. Qa4+ {[%clk 0:03:01]}
5... Nbd7 {[%clk 0:01:46.3]} 6. Qxc4 {[%clk 0:03:01.1]} 6... a6 {[%clk
0:01:46.7]} 7. d3 {[%clk 0:03:00.1]} 7... c5 {[%clk 0:01:46.2]} 8. Qb3 {[%clk
0:02:58.1]} 8... Be7 {[%clk 0:01:40.8]} 9. a4 {[%clk 0:02:58.2]} 9... O-O {[%clk
0:01:30.1]} 10. a5 {[%clk 0:02:57.8]} 10... Nd5 {[%clk 0:01:29.8]} 11. O-O
{[%clk 0:02:57.7]} 11... Qc7 {[%clk 0:01:28.6]} 12. Bd2 {[%clk 0:02:56.7]} 12...
N7f6 {[%clk 0:01:24.8]} 13. Na3 {[%clk 0:02:56.3]} 13... Bd7 {[%clk 0:01:24.2]}
14. Nc4 {[%clk 0:02:56.5]} 14... Rfd8 {[%clk 0:01:21.7]} 15. Rfc1 {[%clk
0:02:54.6]} 15... Be8 {[%clk 0:01:17.7]} 16. e4 {[%clk 0:02:51.3]} 16... Nb4
{[%clk 0:01:06.9]} 17. Bxb4 {[%clk 0:02:51.1]} 17... cxb4 {[%clk 0:01:07.8]} 18.
Nb6 {[%clk 0:02:51.2]} 18... Qb8 {[%clk 0:01:05.6]} 19. Nxa8 {[%clk 0:02:49.5]}
19... Qxa8 {[%clk 0:01:06.5]} 20. Ne5 {[%clk 0:02:42.3]} 20... Bd6 {[%clk
0:00:59.7]} 21. Nc4 {[%clk 0:02:41.2]} 21... e5 {[%clk 0:00:57.4]} 22. Nxd6
{[%clk 0:02:40.3]} 22... Rxd6 {[%clk 0:00:58.3]} 23. Qxb4 {[%clk 0:02:39.5]}
23... Rxd3 {[%clk 0:00:56.4]} 24. Rd1 {[%clk 0:02:36.1]} 24... Bb5 {[%clk
0:00:55.8]} 25. Rxd3 {[%clk 0:02:34.8]} 25... Bxd3 {[%clk 0:00:56.7]} 26. Rd1
{[%clk 0:02:34.6]} 26... Bb5 {[%clk 0:00:54.8]} 27. Qe7 {[%clk 0:02:34.1]} 1-0

[Event "Late-Titled-Tuesday-Blitz-May-14-2024"]
[Site "Chess.com"]
[Date "2024.05.14"]
[Round "10"]
[White "OIAM03"]
[Black "lilylg"]
[Result "0-1"]
[WhiteElo "1975"]
[BlackElo "2208"]
[TimeControl "180+1"]
[EndTime "15:51:34 PDT"]
[Termination "lilylg won by resignation"]

1. e4 {[%clk 0:02:57.3]} 1... c6 {[%clk 0:02:58.2]} 2. Nf3 {[%clk 0:02:56.4]}
2... d5 {[%clk 0:02:58.8]} 3. Nc3 {[%clk 0:02:56.8]} 3... Bg4 {[%clk 0:02:58.2]}
4. h3 {[%clk 0:02:56.3]} 4... Bxf3 {[%clk 0:02:58.4]} 5. Qxf3 {[%clk 0:02:55.8]}
5... e6 {[%clk 0:02:56.2]} 6. d4 {[%clk 0:02:51.7]} 6... Nf6 {[%clk 0:02:49]} 7.
e5 {[%clk 0:02:49.2]} 7... Nfd7 {[%clk 0:02:48.8]} 8. Bf4 {[%clk 0:02:49.2]}
8... c5 {[%clk 0:02:47.1]} 9. O-O-O {[%clk 0:02:49.3]} 9... cxd4 {[%clk
0:02:44.9]} 10. Rxd4 {[%clk 0:02:48.1]} 10... Nc6 {[%clk 0:02:45]} 11. Rd1
{[%clk 0:02:45]} 11... Bb4 {[%clk 0:02:29.7]} 12. Qg3 {[%clk 0:02:40.5]} 12...
Qa5 {[%clk 0:02:18.1]} 13. Qxg7 {[%clk 0:01:42.3]} 13... O-O-O {[%clk
0:02:17.3]} 14. Kb1 {[%clk 0:00:50.3]} 14... Bxc3 {[%clk 0:02:03.2]} 15. bxc3
{[%clk 0:00:49.8]} 15... Nc5 {[%clk 0:02:01.7]} 16. Bd3 {[%clk 0:00:40]} 16...
Na4 {[%clk 0:01:59.1]} 0-1